fUSD/lending_fUSD_20260118
["ID","MTS","AMOUNT","RATE_DAILY","PERIOD"]
[402644274,1768743041530,-501.86548223,0.00016274,2]
[402644275,1768743041539,-269.26769626,0.00016285,2]
[402644276,1768743041548,-150.0,0.00016328,2]
[402644277,1768743041557,-4847.60495157,0.0001633,2]
[402644278,1768743041567,-4645.33349495,0.0001633,2]
[402644279,1768743041576,-46928.83,0.00016379,2]
[402644280,1768743041585,-150.0,0.00016383,2]
[402644281,1768743041594,-833.0,0.000164,2]
[402644282,1768743041603,-1000.0,0.00016438,2]
[402644283,1768743041613,-1000.0,0.00016438,2]
[402644284,1768743041622,-671.44774677,0.00016438,2]
[402644285,1768743041631,-500.0,0.00016438,2]
[402644286,1768743041640,-500.0,0.00016438,2]
[402644287,1768743041649,-500.0,0.00016438,2]
[402644288,1768743041659,-500.0,0.00016438,2]
[402644289,1768743041668,-500.0,0.00016438,2]
[402644290,1768743041677,-500.0,0.00016438,2]
[402644291,1768743041686,-500.0,0.00016438,2]
[402644292,1768743041696,-500.0,0.00016438,2]
[402644293,1768743041705,-500.0,0.00016438,2]
[402644294,1768743041715,-500.0,0.00016438,2]
[402644295,1768743041724,-500.0,0.00016438,2]
[402644296,1768743041734,-500.0,0.00016438,2]
[402644297,1768743041744,-500.0,0.00016438,2]
[402644298,1768743041754,-500.0,0.00016438,2]
[402644299,1768743041763,-500.0,0.00016438,2]
[402644300,1768743041773,-500.0,0.00016438,2]
[402644301,1768743041782,-500.0,0.00016438,2]
[402644302,1768743041792,-500.0,0.00016438,2]
[402644303,1768743041802,-500.0,0.00016438,2]
[402644304,1768743041811,-500.0,0.00016438,2]
[402644305,1768743041821,-500.0,0.00016438,2]
[402644306,1768743041831,-500.0,0.00016438,2]
[402644307,1768743041841,-500.0,0.00016438,2]
[402644308,1768743041850,-500.0,0.00016438,2]
[402644309,1768743041860,-500.0,0.00016438,2]
[402644310,1768743041869,-500.0,0.00016438,2]
[402644311,1768743041879,-500.0,0.00016438,2]
[402644312,1768743041889,-500.0,0.00016438,2]
[402644313,1768743041899,-504.31183971,0.00016438,2]
[402644314,1768743041909,-500.0,0.00016438,2]
[402644315,1768743041918,-500.0,0.00016438,2]
[402644316,1768743041928,-500.0,0.00016438,2]
[402644317,1768743041937,-500.0,0.00016438,2]
[402644318,1768743041947,-600.0,0.00016438,2]
[402644319,1768743041956,-555.23117216,0.00016438,2]
[402644320,1768743041966,-926.0,0.00016438,2]
[402644321,1768743041976,-14413.39,0.0001644,2]
[402644322,1768743041986,-1554.6,0.0001644,2]
[402644323,1768743041995,-1680.0,0.00016467,2]
[402644324,1768743042005,-1000.0,0.00016521,2]
[402644325,1768743042014,-1000.0,0.00016521,2]
[402644326,1768743042023,-882.76820555,0.00016521,2]
[402644327,1768743042032,-1000.0,0.00016521,2]
[402644328,1768743042042,-4847.60495157,0.00016644,2]
[402644329,1768743042056,-4645.33349495,0.00016644,2]
[402644330,1768743042065,-269.26769626,0.00016689,2]
[402644331,1768743042075,-600.0,0.00016712,2]
[402644332,1768743042084,-1554.6,0.00016714,2]
[402644333,1768743042094,-6247.73,0.0001679,2]
[402644334,1768743042104,-4847.60495157,0.00016958,2]
[402644335,1768743042114,-4645.33349495,0.00016958,2]
[402644336,1768743042125,-600.0,0.00016986,2]
[402644337,1768743042134,-1554.6,0.00016988,2]
[402644338,1768743042144,-500.0,0.00017,7]
[402644339,1768743042153,-500.0,0.00017,7]
[402644340,1768743042162,-500.0,0.00017,7]
[402644341,1768743042171,-500.0,0.00017,7]
[402644342,1768743042180,-500.0,0.00017,7]
[402644343,1768743042189,-500.0,0.00017,7]
[402644344,1768743042199,-500.0,0.00017,7]
[402644345,1768743042208,-500.0,0.00017,7]
[402644346,1768743042217,-500.0,0.00017,7]
[402644347,1768743042226,-500.0,0.00017,7]
[402644348,1768743042235,-500.0,0.00017,7]
[402644349,1768743042245,-500.0,0.00017,7]
[402644350,1768743042254,-500.0,0.00017,7]
[402644351,1768743042263,-500.0,0.00017,7]
[402644352,1768743042272,-500.0,0.00017,7]
[402644353,1768743042282,-500.0,0.00017,7]
[402644354,1768743042292,-500.0,0.00017,7]
[402644355,1768743042301,-500.0,0.00017,7]
[402644356,1768743042310,-500.0,0.00017,7]
[402644357,1768743042320,-500.0,0.00017,7]
[402644358,1768743042330,-500.0,0.00017,7]
[402644359,1768743042339,-500.0,0.00017,7]
[402644360,1768743042350,-500.0,0.00017,7]
[402644361,1768743042359,-500.0,0.00017,7]
[402644362,1768743042369,-500.0,0.00017,7]
[402644363,1768743042379,-500.0,0.00017,7]
[402644364,1768743042388,-500.0,0.00017,7]
[402644365,1768743042398,-500.0,0.00017,7]
[402644366,1768743042407,-500.0,0.00017,7]
[402644367,1768743042416,-500.0,0.00017,7]
[402644368,1768743042426,-500.0,0.00017,7]
[402644369,1768743042435,-500.0,0.00017,7]
[402644370,1768743042444,-500.0,0.00017,7]
[402644371,1768743042454,-500.0,0.00017,7]
[402644372,1768743042464,-500.0,0.00017,7]
[402644373,1768743042474,-500.0,0.00017,7]
[402644374,1768743042483,-500.0,0.00017,7]
[402644375,1768743042492,-500.0,0.00017,7]
[402644376,1768743042501,-500.0,0.00017,7]
[402644377,1768743042510,-500.0,0.00017,7]
[402644378,1768743042519,-500.0,0.00017,7]
[402644379,1768743042532,-500.0,0.00017,7]
[402644380,1768743042542,-500.0,0.00017,7]
[402644381,1768743042553,-500.0,0.00017,7]
[402644382,1768743042562,-500.0,0.00017,7]
[402644383,1768743042572,-500.0,0.00017,7]
[402644384,1768743042582,-500.0,0.00017,7]
[402644385,1768743042592,-500.0,0.00017,7]
[402644386,1768743042601,-500.0,0.00017,7]
[402644387,1768743042611,-500.0,0.00017,7]
[402644388,1768743042620,-500.0,0.00017,7]
[402644389,1768743042630,-500.0,0.00017,7]
[402644390,1768743042640,-500.0,0.00017,7]
[402644391,1768743042650,-500.0,0.00017,7]
[402644392,1768743042660,-500.0,0.00017,7]
[402644393,1768743042669,-500.0,0.00017,7]
[402644394,1768743042678,-500.0,0.00017,7]
[402644395,1768743042688,-500.0,0.00017,7]
[402644396,1768743042697,-500.0,0.00017,7]
[402644397,1768743042706,-500.0,0.00017,7]
[402644398,1768743042715,-500.0,0.00017,7]
[402644399,1768743042724,-500.0,0.00017,7]
[402644400,1768743042733,-500.0,0.00017,7]
[402644401,1768743042743,-500.0,0.00017,7]
[402644402,1768743042755,-500.0,0.00017,7]
[402644403,1768743042764,-500.0,0.00017,7]
[402644404,1768743042773,-500.0,0.00017,7]
[402644405,1768743042782,-308.5,0.00017,7]
[402644407,1768743042792,-500.0,0.00017,7]
[402644408,1768743042802,-500.0,0.00017,7]
[402644409,1768743042812,-500.0,0.00017,7]
[402644410,1768743042821,-500.0,0.00017,7]
[402644411,1768743042831,-500.0,0.00017,7]
[402644413,1768743042841,-500.0,0.00017,7]
[402644414,1768743042851,-500.0,0.00017,7]
[402644416,1768743042860,-500.0,0.00017,7]
[402644418,1768743042870,-500.0,0.00017,7]
[402644419,1768743042880,-500.0,0.00017,7]
[402644420,1768743042890,-500.0,0.00017,7]
[402644422,1768743042900,-500.0,0.00017,7]
[402644423,1768743042909,-500.0,0.00017,7]
[402644424,1768743042918,-500.0,0.00017,7]
[402644425,1768743042927,-500.0,0.00017,7]
[402644426,1768743042937,-500.0,0.00017,7]
[402644428,1768743042947,-500.0,0.00017,7]
[402644430,1768743042956,-500.0,0.00017,7]
[402644432,1768743042965,-500.0,0.00017,7]
[402644434,1768743042974,-500.0,0.00017,7]
[402644435,1768743042983,-500.0,0.00017,7]
[402644437,1768743042994,-500.0,0.00017,7]
[402644442,1768743043243,-500.0,0.00017,7]
[402644443,1768743043252,-500.0,0.00017,7]
[402644444,1768743043263,-500.0,0.00017,7]
[402644445,1768743043272,-500.0,0.00017,7]
[402644446,1768743043281,-500.0,0.00017,7]
[402644447,1768743043291,-500.0,0.00017,7]
[402644448,1768743043300,-500.0,0.00017,7]
[402644449,1768743043309,-500.0,0.00017,7]
[402644450,1768743043319,-512.58,0.00017,7]
[402644451,1768743043328,-500.0,0.00017,7]
[402644452,1768743043337,-500.0,0.00017,7]
[402644453,1768743043346,-662.88,0.00017041,2]
[402644454,1768743043356,-483.79,0.00017041,2]
[402644455,1768743043365,-662.88,0.00017041,2]
[402644456,1768743043375,-483.79,0.00017041,2]
[402644457,1768743043384,-662.88,0.00017041,2]
[402644458,1768743043395,-483.79,0.00017041,2]
[402644460,1768743043404,-508.42,0.00017041,2]
[402644461,1768743043413,-483.68,0.00017041,2]
[402644462,1768743043423,-158.9,0.00017055,2]
[402644463,1768743043432,-1000.0,0.00017068,2]
[402644464,1768743043440,-269.26769626,0.00017093,2]
[402644465,1768743043450,-4001.0,0.00017099,2]
[402644466,1768743043460,-574.12855637,0.00017099,2]
[402644467,1768743043470,-660.99739858,0.00017099,2]
[402644468,1768743043479,-150.0,0.000171,2]
[402644469,1768743043488,-150.0,0.000171,2]
[402644470,1768743043497,-150.0,0.000171,2]
[402644471,1768743043507,-150.0,0.000171,2]
[402644472,1768743043516,-164.45281015,0.0001717,2]
[402644473,1768743043527,-150.0,0.00017217,2]
[402644474,1768743043536,-600.0,0.0001726,2]
[402644475,1768743043548,-1000.0,0.0001726,2]
[402644476,1768743043558,-1554.6,0.00017262,2]
[402644477,1768743043568,-4847.60495157,0.00017272,2]
[402644478,1768743043578,-4645.33349495,0.00017272,2]
[402644479,1768743043588,-150.0,0.00017314,2]
[402644480,1768743043598,-4582.0,0.0001748,2]
[402644481,1768743043608,-269.26769626,0.00017496,2]
[402644482,1768743043617,-600.0,0.00017534,2]
[402644483,1768743043627,-1000.0,0.00017534,2]
[402644484,1768743043636,-1554.6,0.00017536,2]
[402644485,1768743043645,-4847.60495157,0.00017586,2]
[402644486,1768743043655,-4645.33349495,0.00017586,2]
[402644487,1768743043664,-3191.87447378,0.0001764,2]
[402644488,1768743043674,-595.37131296,0.00017647,2]
[402644489,1768743043683,-8759.91,0.00017728,5]
[402644490,1768743043692,-1000.0,0.00017732,2]
[402644491,1768743043701,-1000.0,0.00017733,2]
[402644492,1768743043710,-1000.0,0.00017734,2]
[402644493,1768743043719,-1000.0,0.00017735,2]
[402644494,1768743043728,-1000.0,0.00017738,2]
[402644495,1768743043736,-150.0,0.00017746,2]
[402644496,1768743043746,-1000.0,0.00017761,2]
[402644497,1768743043755,-1000.0,0.00017771,2]
[402644498,1768743043765,-2000.0,0.000178,2]
[402644499,1768743043774,-1000.0,0.00017802,2]
[402644500,1768743043783,-500.0,0.00017808,2]
[402644501,1768743043792,-600.0,0.00017808,2]
[402644502,1768743043801,-1000.0,0.00017808,2]
[402644503,1768743043811,-1554.6,0.0001781,2]
[402644504,1768743043820,-1000.0,0.00017814,2]
[402644505,1768743043829,-1000.0,0.0001782,2]
[402644506,1768743043839,-1000.0,0.00017822,2]
[402644507,1768743043849,-1000.0,0.00017825,2]
[402644508,1768743043859,-1000.0,0.00017831,2]
[402644509,1768743043870,-1000.0,0.00017832,2]
[402644510,1768743043879,-1000.0,0.00017835,2]
[402644511,1768743043889,-1000.0,0.00017835,2]
[402644512,1768743043901,-150.0,0.00017836,2]
[402644513,1768743043911,-150.0,0.0001784,2]
[402644514,1768743043921,-1000.0,0.00017842,2]
[402644515,1768743043931,-4582.0,0.00017843,2]
[402644516,1768743043941,-1000.0,0.00017848,2]
[402644517,1768743043951,-200.0,0.00017856,2]
[402644518,1768743043960,-1000.0,0.00017858,2]
[402644519,1768743043970,-1000.0,0.00017858,2]
[402644520,1768743043980,-500.0,0.00017863,2]
[402644521,1768743043989,-150.0,0.00017868,2]
[402644522,1768743043999,-1141.50828975,0.00017872,2]
[402644523,1768743044009,-1000.0,0.00017877,2]
[402644524,1768743044019,-5800.0,0.00017883,2]
[402644525,1768743044029,-7060.90449314,0.0001789,2]
[402644526,1768743044039,-1000.0,0.00017892,2]
[402644527,1768743044052,-1000.0,0.00017894,2]
[402644528,1768743044062,-500.0,0.00017899,2]
[402644529,1768743044071,-262.6381711,0.00017899,2]
[402644530,1768743044081,-262.63817108,0.000179,2]
[402644531,1768743044091,-10000.0,0.000179,2]
[402644532,1768743044100,-161.31560848,0.000179,2]
[402644533,1768743044110,-567.8712304,0.000179,2]
[402644534,1768743044121,-1688.0063006,0.000179,2]
[402644535,1768743044130,-467.49211501,0.000179,2]
[402644536,1768743044141,-467.49211501,0.000179,2]
[402644537,1768743044151,-467.49211501,0.000179,2]
[402644538,1768743044162,-467.49211501,0.000179,2]
[402644539,1768743044173,-467.49211501,0.000179,2]
[402644540,1768743044183,-467.49211501,0.000179,2]
[402644541,1768743044192,-467.49211501,0.000179,2]
[402644542,1768743044202,-467.49211501,0.000179,2]
[402644543,1768743044211,-4847.60495157,0.000179,2]
[402644544,1768743044220,-467.49211501,0.000179,2]
[402644545,1768743044230,-467.49211501,0.000179,2]
[402644546,1768743044240,-467.49211501,0.000179,2]
[402644547,1768743044250,-467.49211501,0.000179,2]
[402644548,1768743044261,-467.49211501,0.000179,2]
[402644549,1768743044270,-467.49211501,0.000179,2]
[402644550,1768743044280,-467.49211501,0.000179,2]
[402644551,1768743044289,-467.49211501,0.000179,2]
[402644552,1768743044299,-467.49211501,0.000179,2]
[402644553,1768743044309,-467.49211501,0.000179,2]
[402644554,1768743044318,-467.49211501,0.000179,2]
[402644555,1768743044328,-269.26769626,0.000179,2]
[402644556,1768743044338,-4645.33349495,0.000179,2]
[402644557,1768743044347,-262.63817108,0.000179,2]
[402644558,1768743044357,-3092.052693,0.000179,2]
[402644559,1768743044366,-1249.39886294,0.000179,2]
[402644560,1768743044376,-22127.0,0.000179,2]
[402644561,1768743044386,-211.61539095,0.000179,3]
[402644562,1768743044396,-391.4262,0.000179,2]
[402644563,1768743044406,-4437.0,0.000179,2]
[402644564,1768743044415,-1000.0,0.00017904,2]
[402644565,1768743044424,-500.0,0.00017918,2]
[402644566,1768743044433,-1000.0,0.0001792,2]
[402644567,1768743044443,-1000.0,0.00017929,2]
[402644568,1768743044452,-1000.0,0.00017929,2]
[402644569,1768743044462,-1000.0,0.00017931,2]
[402644570,1768743044472,-1000.0,0.00017944,2]
[402644571,1768743044485,-1000.0,0.00017945,2]
[402644572,1768743044495,-150.0,0.00017949,2]
[402644573,1768743044505,-1268.0,0.00017965,2]
[402644574,1768743044515,-412.0,0.00017965,2]
[402644575,1768743044525,-915.0,0.00017965,2]
[402644576,1768743044535,-1202.0,0.00017965,2]
[402644577,1768743044546,-3473.0,0.00017965,2]
[402644578,1768743044556,-1331.0,0.00017965,2]
[402644579,1768743044566,-615.0,0.00017965,2]
[402644580,1768743044575,-150.0,0.00017969,2]
[402644581,1768743044585,-661.50728786,0.0001797,2]
[402644582,1768743044595,-500.0,0.00017972,2]
[402644583,1768743044605,-500.0,0.00017972,2]
[402644584,1768743044615,-765.0,0.00017973,2]
[402644585,1768743044625,-237.81029679,0.00017973,2]
[402644586,1768743044634,-500.0,0.00017973,2]
[402644587,1768743044643,-500.0,0.00017973,2]
[402644588,1768743044653,-500.0,0.00017973,2]
[402644589,1768743044662,-150.0,0.00017973,2]
[402644590,1768743044672,-500.0,0.00017973,2]
[402644591,1768743044681,-210.69082377,0.00017973,2]
[402644592,1768743044691,-500.0,0.00017973,2]
[402644593,1768743044700,-500.0,0.00017973,2]
[402644594,1768743044710,-500.0,0.00017973,2]
[402644595,1768743044719,-500.0,0.00017973,2]
[402644596,1768743044728,-150.0,0.00017973,2]
[402644597,1768743044738,-1000.0,0.00017976,2]
[402644598,1768743044747,-1000.0,0.00017981,2]
[402644599,1768743044758,-477.40901789,0.00017989,2]
[402644600,1768743044768,-477.40901789,0.0001799,2]
[402644601,1768743044777,-477.40901789,0.0001799,2]
[402644602,1768743044787,-1000.0,0.00017991,2]
[402644603,1768743044797,-150.0,0.00017999,2]
[402644604,1768743044806,-261.35951101,0.00017999,2]
[402644605,1768743044815,-3704.5398174,0.00017999,2]
[402644606,1768743044825,-155.0,0.00017999,2]
[402644607,1768743044835,-551.01907278,0.00017999,2]
[402644608,1768743044846,-300.0,0.00017999,2]
[402644609,1768743044857,-500.0,0.00017999,2]
[402644610,1768743044866,-500.0,0.00017999,2]
[402644611,1768743044876,-500.0,0.00017999,2]
[402644612,1768743044885,-500.0,0.00017999,2]
[402644613,1768743044895,-500.0,0.00017999,2]
[402644614,1768743044904,-500.0,0.00017999,2]
[402644615,1768743044914,-500.0,0.00017999,2]
[402644616,1768743044924,-500.0,0.00017999,2]
[402644617,1768743044933,-500.0,0.00017999,2]
[402644618,1768743044944,-500.0,0.00017999,2]
[402644619,1768743044953,-500.0,0.00017999,2]
[402644620,1768743044963,-500.0,0.00017999,2]
[402644621,1768743044973,-500.0,0.00017999,2]
[402644622,1768743044982,-500.0,0.00017999,2]
[402644623,1768743044992,-300.0,0.00017999,2]
[402644624,1768743045001,-666.0,0.00017999,2]
[402644625,1768743045010,-516449.6958636,0.00017999,2]
[402644626,1768743045019,-300.0,0.00017999,2]
[402644627,1768743045028,-666.0,0.00017999,2]
[402644628,1768743045038,-12060.1914262,0.00017999,2]
[402644629,1768743045050,-300.0,0.00017999,2]
[402644630,1768743045059,-150.0,0.00018,2]
[402644631,1768743045069,-236.45405301,0.00018,2]
[402644632,1768743045079,-150.0,0.00018,2]
[402644633,1768743045089,-265.5663701,0.00018,2]
[402644634,1768743045099,-150.0,0.00018,2]
[402644635,1768743045108,-150.0,0.00018,2]
[402644636,1768743045117,-1002.61682753,0.00018,2]
[402644637,1768743045127,-228514.11088577,0.00018,2]
[402644638,1768743045136,-347227.86231752,0.00018,2]
[402644639,1768743045146,-103481.11086898,0.00018,2]
[402644640,1768743045155,-836625.80917295,0.00018,2]
[402644641,1768743046424,-829.5534708,0.000179,2]
[402644642,1768743046434,-15967.6873312,0.00018,2]
[402644643,1768743046471,-4280.37655949,0.00018,2]
[402644644,1768743046482,-2617.51112008,0.00018,2]
[402644645,1768743046506,-758.14934782,0.00018,2]
[402644646,1768743046559,-506.80442796,0.00018,2]
[402644647,1768743047201,-2735.5842564,0.00018,2]
[402644780,1768743410650,-250.877,0.00014671,2]
[402644781,1768743410673,-1200.0,0.0001487,2]
[402644782,1768743410694,-300.0,0.0001487,2]
[402644783,1768743410720,-500.0,0.0001487,2]
[402644784,1768743410746,-500.0,0.0001487,2]
[402644785,1768743410770,-500.0,0.0001487,2]
[402644786,1768743410794,-500.0,0.0001487,2]
[402644787,1768743410818,-500.0,0.0001487,2]
[402644788,1768743410842,-500.0,0.0001487,2]
[402644789,1768743410867,-500.0,0.0001487,2]
[402644790,1768743410892,-500.0,0.0001487,2]
[402644791,1768743410921,-277.68002487,0.0001487,2]
[402644792,1768743410946,-500.0,0.0001487,2]
[402644793,1768743410972,-500.0,0.0001487,2]
[402644794,1768743410998,-500.0,0.0001487,2]
[402644795,1768743411024,-500.0,0.0001487,2]
[402644796,1768743411049,-500.0,0.0001487,2]
[402644797,1768743411074,-500.0,0.0001487,2]
[402644798,1768743411100,-500.0,0.0001487,2]
[402644799,1768743411124,-500.0,0.0001487,2]
[402644801,1768743411149,-500.0,0.0001487,2]
[402644802,1768743411174,-500.0,0.0001487,2]
[402644803,1768743411200,-471.44297513,0.0001487,2]
[402644806,1768743415440,-28.55702487,0.0001487,2]
[402644807,1768743415469,-500.0,0.0001487,2]
[402644808,1768743415496,-500.0,0.0001487,2]
[402644809,1768743415520,-500.0,0.0001487,2]
[402644873,1768743436753,-1018.2026,0.00014871,2]
[402644874,1768743436782,-9391.34804914,0.00014871,2]
[402644876,1768743436804,-1090.44935086,0.00014871,2]
[402644900,1768743445000,-4726.87752431,0.00014871,2]
[402644905,1768743457178,-315.50617182,0.000149,2]
[402644906,1768743457205,-620.20330198,0.000149,2]
[402644910,1768743474579,1974.62705434,0.00014871,2]
[402644913,1768743475378,-150.0,0.00014966,2]
[402644914,1768743475400,-207.89511552,0.00014967,2]
[402644915,1768743475425,-500.0,0.00014967,2]
[402644916,1768743475449,-500.0,0.00014967,2]
[402644917,1768743475473,-342.39638453,0.00014967,2]
[402644924,1768743487638,-300.0,0.00014966,2]
[402644925,1768743487661,-600.0,0.00014967,2]
[402644926,1768743487686,-157.60361547,0.00014967,2]
[402644927,1768743487710,-500.0,0.00014967,2]
[402644928,1768743487735,-500.0,0.00014967,2]
[402644929,1768743487760,-500.0,0.00014967,2]
[402644930,1768743487785,-500.0,0.00014967,2]
[402644931,1768743487811,-500.0,0.00014967,2]
[402644932,1768743487836,-500.0,0.00014967,2]
[402644933,1768743487861,-500.0,0.00014967,2]
[402644934,1768743487886,-391.42084267,0.00014967,2]
[402644935,1768743487910,-500.0,0.00014967,2]
[402644936,1768743487935,-500.0,0.00014967,2]
[402644937,1768743487959,-500.0,0.00014967,2]
[402644938,1768743487984,-500.0,0.00014967,2]
[402644939,1768743488010,-100.0,0.00014967,2]
[402644945,1768743496839,-400.0,0.00014967,2]
[402644946,1768743496862,-500.0,0.00014967,2]
[402644947,1768743496882,-1380.31,0.00014967,2]
[402644948,1768743509714,-292.34594421,0.0001497,2]
[402644949,1768743509736,-229.20110684,0.0001497,2]
[402644950,1768743509759,-500.0,0.0001497,2]
[402644951,1768743509782,-353.17835495,0.0001497,2]
[402644952,1768743509806,-157.54235243,0.0001497,2]
[402644953,1768743509828,-168.02374162,0.0001497,2]
[402644954,1768743516598,210.33744788,0.000149,2]
[402644955,1768743533468,9421.7342345,0.000149,2]
[402644956,1768743541400,300.0,0.0001497,2]
[402644957,1768743542996,150.0,0.0001497,2]
[402644977,1768743601888,1200.0,0.0001497,2]
[402644978,1768743607197,293.32,0.00014961,2]
[402644979,1768743607394,293.32,0.00014961,2]
[402644980,1768743607748,293.32,0.00014961,2]
[402644981,1768743607960,293.32,0.00014961,2]
[402644982,1768743608482,293.32,0.00014961,2]
[402644986,1768743636407,-1000000.0,0.00014971,2]
[402644990,1768743655297,162370.4485,0.00014871,2]
[402644992,1768743683132,29849.9633,0.00014871,2]
[402644993,1768743697534,252.7581849,0.00014969,2]
[402645006,1768743789830,35237.0049158,0.00014969,2]
[402645030,1768743995205,-274.0,0.00014971,2]
[402645031,1768743995230,-112.43848101,0.00015,2]
[402645033,1768744054732,22127.0,0.000148,2]
[402645039,1768744060922,2007.81873345,0.00027397,120]
[402645040,1768744088984,13653.093585,0.00014969,2]
[402645045,1768744149072,-972.5731288,0.00015,2]
[402645063,1768744214005,148876.3562073,0.00014969,2]
[402645074,1768744232199,-520.77267788,0.00015,2]
[402645075,1768744232211,-3394.21571231,0.00015,2]
[402645076,1768744232221,-216.74260354,0.00015068,2]
[402645077,1768744232230,-200.0,0.00015166,2]
[402645078,1768744232240,-1200.0,0.00015168,2]
[402645079,1768744232250,-300.0,0.00015168,2]
[402645080,1768744232260,-300.0,0.00015169,2]
[402645081,1768744232269,-500.0,0.00015169,2]
[402645082,1768744232280,-500.0,0.00015169,2]
[402645083,1768744232290,-500.0,0.00015169,2]
[402645084,1768744232300,-466.91008676,0.00015169,2]
[402645085,1768744232310,-218.54556519,0.00015169,2]
[402645086,1768744232319,-500.0,0.00015169,2]
[402645087,1768744232329,-500.0,0.00015169,2]
[402645088,1768744232339,-393.7975469,0.00015169,2]
[402645089,1768744232348,-500.0,0.0001517,2]
[402645090,1768744232358,-500.0,0.0001517,2]
[402645091,1768744232367,-500.0,0.0001517,2]
[402645092,1768744232376,-500.0,0.0001517,2]
[402645093,1768744232385,-500.0,0.0001517,2]
[402645094,1768744232395,-500.0,0.0001517,2]
[402645095,1768744232404,-500.0,0.0001517,2]
[402645096,1768744232413,-500.0,0.0001517,2]
[402645097,1768744232423,-500.0,0.0001517,2]
[402645098,1768744232432,-564.90040341,0.0001517,2]
[402645099,1768744232442,-500.0,0.0001517,2]
[402645100,1768744232451,-90.63023033,0.0001517,2]
[402645104,1768744232486,-409.36976967,0.0001517,2]
[402645106,1768744232495,-179.37709203,0.0001517,2]
[402645108,1768744232504,-500.0,0.0001517,2]
[402645109,1768744232514,-500.0,0.0001517,2]
[402645110,1768744232524,-500.0,0.0001517,2]
[402645111,1768744232533,-317.53883731,0.0001517,2]
[402645112,1768744232542,-315.78254537,0.0001517,2]
[402645113,1768744232552,-500.0,0.0001517,2]
[402645114,1768744232561,-500.0,0.0001517,2]
[402645115,1768744232570,-500.0,0.0001517,2]
[402645117,1768744232580,-511.51763295,0.0001517,2]
[402645119,1768744232590,-500.0,0.0001517,2]
[402645121,1768744232599,-500.0,0.0001517,2]
[402645123,1768744232608,-502.31698719,0.0001517,2]
[402645124,1768744232621,-500.0,0.0001517,2]
[402645125,1768744232630,-500.0,0.0001517,2]
[402645126,1768744232639,-500.0,0.0001517,2]
[402645127,1768744232647,-500.0,0.0001517,2]
[402645128,1768744232655,-500.0,0.0001517,2]
[402645129,1768744232663,-500.0,0.0001517,2]
[402645130,1768744232671,-500.0,0.0001517,2]
[402645131,1768744232679,-500.0,0.0001517,2]
[402645132,1768744232689,-500.0,0.0001517,2]
[402645133,1768744232698,-500.0,0.0001517,2]
[402645134,1768744232706,-1294.04,0.0001517,2]
[402645135,1768744232716,-200.0,0.000153,2]
[402645136,1768744232726,-200.0,0.00015352,2]
[402645137,1768744232735,-198.25772823,0.0001544,2]